[Event "December 5 Early 2023"]
[Site "https://www.chess.com"]
[Date "2023.12.05"]
[Round "3"]
[White "Santos Flores, Alberto"]
[Black "Ghosh, Chanchal Kumer"]
[Result "1-0"]
[Board "173"]
[TimeControl "180+1"]
[WhiteFideId "3601234"]
[BlackFideId "10201858"]
[WhiteElo "2544"]
[BlackElo "2070"]
[WhiteTeam "ECU"]
[BlackTeam "BAN"]
[WhiteClock "0:00:27"]
[BlackClock "0:00:00"]

1. e4 {[%clk 0:03:00]}  c5 {[%clk 0:03:00]} 2. Nf3 {[%clk 0:03:00]}  d6 {[%clk 0:03:00]} 3. d4 {[%clk 0:03:00]}  cxd4 {[%clk 0:03:01]} 4. Nxd4 {[%clk 0:03:01]}  Nf6 {[%clk 0:03:01]} 5. Nc3 {[%clk 0:03:02]}  a6 {[%clk 0:03:02]} 6. h3 {[%clk 0:03:02]}  e5 {[%clk 0:03:02]} 7. Nb3 {[%clk 0:03:02]}  b5 {[%clk 0:02:56]} 8. g4 {[%clk 0:03:01]}  Bb7 {[%clk 0:02:56]} 9. Bg2 {[%clk 0:03:01]}  h6 {[%clk 0:02:55]} 10. O-O {[%clk 0:03:01]}  Be7 {[%clk 0:02:55]} 11. Nd5 {[%clk 0:02:57]}  Nxd5 {[%clk 0:02:53]} 12. exd5 {[%clk 0:02:57]}  O-O {[%clk 0:02:53]} 13. f4 {[%clk 0:02:57]}  exf4 {[%clk 0:02:53]} 14. Bxf4 {[%clk 0:02:57]}  Nd7 {[%clk 0:02:53]} 15. Nd4 {[%clk 0:02:56]}  Ne5 {[%clk 0:02:08]} 16. Kh1 {[%clk 0:02:55]}  Bf6 {[%clk 0:02:01]} 17. c3 {[%clk 0:02:51]}  Re8 {[%clk 0:02:00]} 18. Qc2 {[%clk 0:02:43]}  Rc8 {[%clk 0:01:52]} 19. Qf2 {[%clk 0:02:42]}  Nd3 {[%clk 0:01:49]} 20. Qd2 {[%clk 0:02:35]}  Nxf4 {[%clk 0:01:41]} 21. Qxf4 {[%clk 0:02:35]}  Rc7 {[%clk 0:01:27]} 22. Rae1 {[%clk 0:02:27]}  Rxe1 {[%clk 0:01:17]} 23. Rxe1 {[%clk 0:02:27]}  Be5 {[%clk 0:01:17]} 24. Qd2 {[%clk 0:02:18]}  Bc8 {[%clk 0:01:11]} 25. Nf3 {[%clk 0:02:17]}  Bg3 {[%clk 0:01:09]} 26. Re4 {[%clk 0:02:14]}  Re7 {[%clk 0:01:08]} 27. Qe2 {[%clk 0:02:13]}  Rxe4 {[%clk 0:01:08]} 28. Qxe4 {[%clk 0:02:13]}  Bd7 {[%clk 0:01:02]} 29. Nd4 {[%clk 0:02:09]}  Qe8 {[%clk 0:00:56]} 30. Kg1 {[%clk 0:02:01]}  Qxe4 {[%clk 0:00:50]} 31. Bxe4 {[%clk 0:02:02]}  Bf4 {[%clk 0:00:49]} 32. Ne2 {[%clk 0:01:54]}  Be5 {[%clk 0:00:47]} 33. Kf2 {[%clk 0:01:53]}  g6 {[%clk 0:00:47]} 34. Ke3 {[%clk 0:01:52]}  Kg7 {[%clk 0:00:45]} 35. Nd4 {[%clk 0:01:46]}  h5 {[%clk 0:00:33]} 36. gxh5 {[%clk 0:01:31]}  gxh5 {[%clk 0:00:34]} 37. Bg2 {[%clk 0:01:27]}  f5 {[%clk 0:00:26]} 38. Nf3 {[%clk 0:01:16]}  Bg3 {[%clk 0:00:20]} 39. Nd4 {[%clk 0:01:03]}  Kf6 {[%clk 0:00:19]} 40. Nc6 {[%clk 0:01:03]}  f4+ {[%clk 0:00:17]} 41. Ke4 {[%clk 0:00:54]}  Bf5+ {[%clk 0:00:16]} 42. Kf3 {[%clk 0:00:54]}  Bc8 {[%clk 0:00:11]} 43. Bf1 {[%clk 0:00:51]}  Bf5 {[%clk 0:00:08]} 44. a4 {[%clk 0:00:45]}  bxa4 {[%clk 0:00:07]} 45. Bxa6 {[%clk 0:00:43]}  Kg5 {[%clk 0:00:07]} 46. Bb5 {[%clk 0:00:41]}  Bxh3 {[%clk 0:00:07]} 47. Bxa4 {[%clk 0:00:42]}  Bf5 {[%clk 0:00:06]} 48. Nd4 {[%clk 0:00:41]}  Bg4+ {[%clk 0:00:06]} 49. Kg2 {[%clk 0:00:41]}  h4 {[%clk 0:00:06]} 50. Ne6+ {[%clk 0:00:36]}  Kf6 {[%clk 0:00:05]} 51. Bb5 {[%clk 0:00:30]}  h3+ {[%clk 0:00:06]} 52. Kg1 {[%clk 0:00:30]}  f3 {[%clk 0:00:04]} 53. Nd4 {[%clk 0:00:27]}  f2+ {[%clk 0:00:00]} 54. Kh1 {[%clk 0:00:27]} 1-0

[Event "December 5 Early 2023"]
[Site "https://www.chess.com"]
[Date "2023.12.05"]
[Round "3"]
[White "Osmak, Yuliia"]
[Black "Villabrille, Roberto"]
[Result "1-0"]
[Board "174"]
[TimeControl "180+1"]
[WhiteFideId "14101602"]
[BlackFideId "103942"]
[WhiteElo "2544"]
[BlackElo "1756"]
[WhiteTeam "UKR"]
[BlackTeam "ARG"]
[WhiteClock "0:01:19"]
[BlackClock "0:00:05"]

1. e4 {[%clk 0:03:00]}  d5 {[%clk 0:02:56]} 2. exd5 {[%clk 0:03:00]}  Qxd5 {[%clk 0:02:56]} 3. Nc3 {[%clk 0:03:00]}  Qd6 {[%clk 0:02:57]} 4. d4 {[%clk 0:03:00]}  Nc6 {[%clk 0:02:57]} 5. Nf3 {[%clk 0:02:58]}  Nf6 {[%clk 0:02:58]} 6. g3 {[%clk 0:02:49]}  Bg4 {[%clk 0:02:58]} 7. Be3 {[%clk 0:02:43]}  e6 {[%clk 0:02:57]} 8. h3 {[%clk 0:02:40]}  Bxf3 {[%clk 0:02:55]} 9. Qxf3 {[%clk 0:02:40]}  O-O-O {[%clk 0:02:55]} 10. O-O-O {[%clk 0:02:39]}  a6 {[%clk 0:02:45]} 11. Bg2 {[%clk 0:02:37]}  Be7 {[%clk 0:02:40]} 12. Kb1 {[%clk 0:02:35]}  h6 {[%clk 0:02:34]} 13. g4 {[%clk 0:02:31]}  Qd7 {[%clk 0:02:21]} 14. Rhe1 {[%clk 0:02:23]}  Bb4 {[%clk 0:02:15]} 15. Bf4 {[%clk 0:02:13]}  Bxc3 {[%clk 0:02:11]} 16. Qxc3 {[%clk 0:02:13]}  Nd5 {[%clk 0:02:07]} 17. Qg3 {[%clk 0:02:12]}  Nxf4 {[%clk 0:02:04]} 18. Qxf4 {[%clk 0:02:13]}  e5 {[%clk 0:01:53]} 19. Bxc6 {[%clk 0:01:47]}  exf4 {[%clk 0:01:42]} 20. Bxd7+ {[%clk 0:01:47]}  Rxd7 {[%clk 0:01:42]} 21. Re4 {[%clk 0:01:47]}  g5 {[%clk 0:01:36]} 22. Rde1 {[%clk 0:01:45]}  f6 {[%clk 0:01:23]} 23. Re8+ {[%clk 0:01:43]}  Rd8 {[%clk 0:01:12]} 24. Rxh8 {[%clk 0:01:36]}  Rxh8 {[%clk 0:01:10]} 25. Re6 {[%clk 0:01:35]}  Rf8 {[%clk 0:01:08]} 26. Re7 {[%clk 0:01:33]}  Kd8 {[%clk 0:00:57]} 27. Rh7 {[%clk 0:01:33]}  f5 {[%clk 0:00:52]} 28. Rxh6 {[%clk 0:01:30]}  fxg4 {[%clk 0:00:48]} 29. hxg4 {[%clk 0:01:30]}  Rg8 {[%clk 0:00:39]} 30. Kc1 {[%clk 0:01:28]}  Re8 {[%clk 0:00:34]} 31. Kd1 {[%clk 0:01:24]}  Re4 {[%clk 0:00:32]} 32. c3 {[%clk 0:01:19]}  f3 {[%clk 0:00:27]} 33. Rf6 {[%clk 0:01:18]}  Rxg4 {[%clk 0:00:26]} 34. Rxf3 {[%clk 0:01:18]}  Rg2 {[%clk 0:00:26]} 35. Ke2 {[%clk 0:01:17]}  g4 {[%clk 0:00:18]} 36. Rg3 {[%clk 0:01:17]}  Rxg3 {[%clk 0:00:12]} 37. fxg3 {[%clk 0:01:17]}  Ke7 {[%clk 0:00:12]} 38. Ke3 {[%clk 0:01:18]}  Kf6 {[%clk 0:00:05]} 39. Kf4 {[%clk 0:01:19]} 1-0

[Event "December 5 Early 2023"]
[Site "https://www.chess.com"]
[Date "2023.12.05"]
[Round "3"]
[White "Abdilkhair, Abilmansur"]
[Black "Papasimakopoulos, Alexandros"]
[Result "0-1"]
[Board "175"]
[TimeControl "180+1"]
[WhiteFideId "13716417"]
[BlackFideId "4244125"]
[WhiteElo "1781"]
[BlackElo "2660"]
[WhiteTeam "KAZ"]
[BlackTeam "GRE"]
[WhiteClock "0:00:10"]
[BlackClock "0:00:42"]

1. d4 {[%clk 0:03:00]}  e6 {[%clk 0:02:42]} 2. Nc3 {[%clk 0:02:56]}  d5 {[%clk 0:02:42]} 3. Bf4 {[%clk 0:02:54]}  Bb4 {[%clk 0:02:21]} 4. e3 {[%clk 0:02:53]}  Nf6 {[%clk 0:02:20]} 5. Ne2 {[%clk 0:02:53]}  O-O {[%clk 0:02:14]} 6. a3 {[%clk 0:02:52]}  Bd6 {[%clk 0:02:12]} 7. h4 {[%clk 0:02:41]}  Re8 {[%clk 0:02:07]} 8. h5 {[%clk 0:02:40]}  h6 {[%clk 0:02:07]} 9. Bxd6 {[%clk 0:02:37]}  Qxd6 {[%clk 0:02:06]} 10. Nf4 {[%clk 0:02:38]}  c5 {[%clk 0:02:01]} 11. g3 {[%clk 0:02:36]}  Nc6 {[%clk 0:02:00]} 12. Nb5 {[%clk 0:02:29]}  Qe7 {[%clk 0:02:00]} 13. dxc5 {[%clk 0:02:25]}  Qxc5 {[%clk 0:01:58]} 14. b4 {[%clk 0:02:16]}  Qe7 {[%clk 0:01:57]} 15. c4 {[%clk 0:02:12]}  a6 {[%clk 0:01:50]} 16. Nc3 {[%clk 0:01:48]}  dxc4 {[%clk 0:01:48]} 17. Bxc4 {[%clk 0:01:49]}  b5 {[%clk 0:01:48]} 18. Be2 {[%clk 0:01:45]}  Bb7 {[%clk 0:01:48]} 19. Bf3 {[%clk 0:01:46]}  Ne5 {[%clk 0:01:48]} 20. e4 {[%clk 0:01:09]}  Rac8 {[%clk 0:01:18]} 21. Rc1 {[%clk 0:01:08]}  Nxf3+ {[%clk 0:01:18]} 22. Qxf3 {[%clk 0:01:08]}  Bxe4 {[%clk 0:01:19]} 23. Nxe4 {[%clk 0:01:00]}  Rxc1+ {[%clk 0:01:20]} 24. Ke2 {[%clk 0:01:00]}  Rxh1 {[%clk 0:01:17]} 25. Qxh1 {[%clk 0:01:00]}  Nd5 {[%clk 0:01:13]} 26. Nc5 {[%clk 0:00:56]}  Nxf4+ {[%clk 0:01:13]} 27. gxf4 {[%clk 0:00:57]}  a5 {[%clk 0:01:12]} 28. Qc6 {[%clk 0:00:54]}  axb4 {[%clk 0:01:11]} 29. axb4 {[%clk 0:00:55]}  Rd8 {[%clk 0:01:10]} 30. Qxb5 {[%clk 0:00:55]}  Qd6 {[%clk 0:01:09]} 31. Qc4 {[%clk 0:00:52]}  Qd1+ {[%clk 0:01:08]} 32. Ke3 {[%clk 0:00:51]}  Qe1+ {[%clk 0:01:03]} 33. Kf3 {[%clk 0:00:50]}  Qh1+ {[%clk 0:01:00]} 34. Ke3 {[%clk 0:00:45]}  Qxh5 {[%clk 0:00:57]} 35. Ne4 {[%clk 0:00:42]}  Qh3+ {[%clk 0:00:55]} 36. Ke2 {[%clk 0:00:38]}  Qh5+ {[%clk 0:00:46]} 37. Ke3 {[%clk 0:00:38]}  Qd5 {[%clk 0:00:47]} 38. Qxd5 {[%clk 0:00:16]}  exd5 {[%clk 0:00:46]} 39. Nc5 {[%clk 0:00:16]}  Rb8 {[%clk 0:00:43]} 40. Nd3 {[%clk 0:00:16]}  h5 {[%clk 0:00:44]} 41. Kd4 {[%clk 0:00:16]}  h4 {[%clk 0:00:43]} 42. Kc5 {[%clk 0:00:14]}  h3 {[%clk 0:00:43]} 43. f3 {[%clk 0:00:15]}  h2 {[%clk 0:00:42]} 44. Nf2 {[%clk 0:00:16]}  Rc8+ {[%clk 0:00:42]} 45. Kxd5 {[%clk 0:00:15]}  Rc2 {[%clk 0:00:42]} 46. Nh1 {[%clk 0:00:15]}  Rc1 {[%clk 0:00:42]} 47. Ng3 {[%clk 0:00:16]}  Rg1 {[%clk 0:00:42]} 48. Nh1 {[%clk 0:00:10]}  Rxh1 {[%clk 0:00:42]} 0-1

[Event "December 5 Early 2023"]
[Site "https://www.chess.com"]
[Date "2023.12.05"]
[Round "3"]
[White "Kiremitciyan, Ari"]
[Black "Senft, Sean"]
[Result "1-0"]
[Board "177"]
[TimeControl "180+1"]
[WhiteFideId "6373445"]
[BlackFideId "2044960"]
[WhiteElo "2388"]
[BlackElo "2509"]
[WhiteTeam "TUR"]
[BlackTeam "USA"]
[WhiteClock "0:00:02"]
[BlackClock "0:00:34"]

1. e4 {[%clk 0:03:00]}  c5 {[%clk 0:03:00]} 2. Nf3 {[%clk 0:03:00]}  d6 {[%clk 0:03:00]} 3. Be2 {[%clk 0:02:59]}  Nf6 {[%clk 0:03:01]} 4. c3 {[%clk 0:02:58]}  g6 {[%clk 0:02:58]} 5. O-O {[%clk 0:02:58]}  Bg7 {[%clk 0:02:58]} 6. Re1 {[%clk 0:02:58]}  O-O {[%clk 0:02:59]} 7. Bf1 {[%clk 0:02:58]}  Nc6 {[%clk 0:03:00]} 8. d4 {[%clk 0:02:58]}  Bg4 {[%clk 0:02:59]} 9. dxc5 {[%clk 0:02:48]}  dxc5 {[%clk 0:02:57]} 10. Qxd8 {[%clk 0:02:42]}  Rfxd8 {[%clk 0:02:57]} 11. Nbd2 {[%clk 0:02:40]}  Bxf3 {[%clk 0:02:51]} 12. Nxf3 {[%clk 0:02:39]}  Ng4 {[%clk 0:02:50]} 13. h3 {[%clk 0:02:33]}  Nge5 {[%clk 0:02:50]} 14. Nxe5 {[%clk 0:02:33]}  Nxe5 {[%clk 0:02:49]} 15. Be3 {[%clk 0:02:34]}  b6 {[%clk 0:02:48]} 16. Red1 {[%clk 0:02:33]}  Kf8 {[%clk 0:02:46]} 17. f4 {[%clk 0:02:26]}  Nd7 {[%clk 0:02:38]} 18. e5 {[%clk 0:02:24]}  e6 {[%clk 0:02:23]} 19. Rd6 {[%clk 0:02:10]}  Ke7 {[%clk 0:02:21]} 20. Rad1 {[%clk 0:02:05]}  Nf8 {[%clk 0:02:07]} 21. Rxd8 {[%clk 0:02:03]}  Rxd8 {[%clk 0:02:07]} 22. Rxd8 {[%clk 0:02:04]}  Kxd8 {[%clk 0:02:08]} 23. Kf2 {[%clk 0:01:59]}  Nd7 {[%clk 0:02:05]} 24. Kf3 {[%clk 0:01:58]}  Kc7 {[%clk 0:02:03]} 25. Bb5 {[%clk 0:01:55]}  Bf8 {[%clk 0:01:59]} 26. g4 {[%clk 0:01:48]}  Be7 {[%clk 0:01:59]} 27. Ke4 {[%clk 0:01:44]}  Kd8 {[%clk 0:01:57]} 28. a4 {[%clk 0:01:37]}  Nb8 {[%clk 0:01:56]} 29. f5 {[%clk 0:01:34]}  Bh4 {[%clk 0:01:32]} 30. a5 {[%clk 0:00:45]}  Bg3 {[%clk 0:01:28]} 31. axb6 {[%clk 0:00:42]}  axb6 {[%clk 0:01:29]} 32. b4 {[%clk 0:00:40]}  Be1 {[%clk 0:01:21]} 33. bxc5 {[%clk 0:00:28]}  bxc5 {[%clk 0:01:21]} 34. Bg5+ {[%clk 0:00:18]}  Kc7 {[%clk 0:01:14]} 35. Be8 {[%clk 0:00:18]}  gxf5+ {[%clk 0:01:11]} 36. gxf5 {[%clk 0:00:19]}  exf5+ {[%clk 0:01:08]} 37. Kxf5 {[%clk 0:00:20]}  Bxc3 {[%clk 0:01:05]} 38. Bxf7 {[%clk 0:00:19]}  Nc6 {[%clk 0:00:55]} 39. e6 {[%clk 0:00:14]}  Nd4+ {[%clk 0:00:53]} 40. Ke4 {[%clk 0:00:11]}  Nc6 {[%clk 0:00:38]} 41. Kd5 {[%clk 0:00:08]}  Bd4 {[%clk 0:00:28]} 42. e7 {[%clk 0:00:06]}  Nxe7+ {[%clk 0:00:25]} 43. Bxe7 {[%clk 0:00:07]}  Kd7 {[%clk 0:00:21]} 44. Bg5 {[%clk 0:00:07]}  Ba1 {[%clk 0:00:22]} 45. Bg8 {[%clk 0:00:07]}  c4 {[%clk 0:00:20]} 46. Bxh7 {[%clk 0:00:05]}  c3 {[%clk 0:00:20]} 47. Bc2 {[%clk 0:00:05]}  Ke8 {[%clk 0:00:19]} 48. Ke6 {[%clk 0:00:06]}  Kf8 {[%clk 0:00:17]} 49. Kf6 {[%clk 0:00:06]}  Bb2 {[%clk 0:00:18]} 50. Kg6 {[%clk 0:00:06]}  Kg8 {[%clk 0:00:18]} 51. Bb3+ {[%clk 0:00:05]}  Kf8 {[%clk 0:00:18]} 52. Bf6 {[%clk 0:00:05]}  Ba1 {[%clk 0:00:15]} 53. Bc2 {[%clk 0:00:05]}  Bb2 {[%clk 0:00:15]} 54. h4 {[%clk 0:00:05]}  Bc1 {[%clk 0:00:15]} 55. h5 {[%clk 0:00:05]}  Bd2 {[%clk 0:00:16]} 56. h6 {[%clk 0:00:03]}  Bxh6 {[%clk 0:00:16]} 57. Kxh6 {[%clk 0:00:04]}  Kf7 {[%clk 0:00:17]} 58. Kg5 {[%clk 0:00:04]}  Ke6 {[%clk 0:00:17]} 59. Bxc3 {[%clk 0:00:05]}  Kd5 {[%clk 0:00:18]} 60. Kf4 {[%clk 0:00:06]}  Kc4 {[%clk 0:00:19]} 61. Be5 {[%clk 0:00:06]}  Kb5 {[%clk 0:00:20]} 62. Be4 {[%clk 0:00:06]}  Kc4 {[%clk 0:00:21]} 63. Ke3 {[%clk 0:00:07]}  Kc5 {[%clk 0:00:22]} 64. Bd4+ {[%clk 0:00:08]}  Kd6 {[%clk 0:00:22]} 65. Kf4 {[%clk 0:00:08]}  Ke6 {[%clk 0:00:23]} 66. Be5 {[%clk 0:00:08]}  Ke7 {[%clk 0:00:23]} 67. Bd5 {[%clk 0:00:08]}  Kd7 {[%clk 0:00:24]} 68. Kf5 {[%clk 0:00:08]}  Ke7 {[%clk 0:00:25]} 69. Be6 {[%clk 0:00:09]}  Kd8 {[%clk 0:00:25]} 70. Bd6 {[%clk 0:00:09]}  Ke8 {[%clk 0:00:25]} 71. Kf6 {[%clk 0:00:09]}  Kd8 {[%clk 0:00:26]} 72. Ke5 {[%clk 0:00:09]}  Ke8 {[%clk 0:00:26]} 73. Kd5 {[%clk 0:00:09]}  Kd8 {[%clk 0:00:26]} 74. Kc6 {[%clk 0:00:09]}  Ke8 {[%clk 0:00:27]} 75. Bd5 {[%clk 0:00:07]}  Kd8 {[%clk 0:00:28]} 76. Bf7 {[%clk 0:00:07]}  Kc8 {[%clk 0:00:28]} 77. Be7 {[%clk 0:00:07]}  Kb8 {[%clk 0:00:28]} 78. Be6 {[%clk 0:00:06]}  Ka7 {[%clk 0:00:28]} 79. Bb4 {[%clk 0:00:04]}  Ka6 {[%clk 0:00:29]} 80. Bc4+ {[%clk 0:00:03]}  Ka7 {[%clk 0:00:29]} 81. Bc5+ {[%clk 0:00:03]}  Kb8 {[%clk 0:00:30]} 82. Ba6 {[%clk 0:00:02]}  Ka8 {[%clk 0:00:30]} 83. Bb7+ {[%clk 0:00:03]}  Kb8 {[%clk 0:00:31]} 84. Ba6 {[%clk 0:00:02]}  Ka8 {[%clk 0:00:31]} 85. Bb5 {[%clk 0:00:03]}  Kb8 {[%clk 0:00:32]} 86. Bd6+ {[%clk 0:00:03]}  Ka7 {[%clk 0:00:33]} 87. Kc7 {[%clk 0:00:02]}  Ka8 {[%clk 0:00:33]} 88. Bc4 {[%clk 0:00:02]}  Ka7 {[%clk 0:00:34]} 89. Bc5+ {[%clk 0:00:02]}  Ka8 {[%clk 0:00:34]} 90. Bd5# {[%clk 0:00:02]} 1-0

[Event "December 5 Early 2023"]
[Site "https://www.chess.com"]
[Date "2023.12.05"]
[Round "3"]
[White "Tarasova, Viktoriya"]
[Black "Sanchez Enriquez, Oscar Gerardo"]
[Result "0-1"]
[Board "178"]
[TimeControl "180+1"]
[WhiteFideId "4175840"]
[BlackFideId "5106311"]
[WhiteElo "2355"]
[BlackElo "2509"]
[WhiteTeam "RUS"]
[BlackTeam "MEX"]
[WhiteClock "0:00:03"]
[BlackClock "0:00:30"]

1. d4 {[%clk 0:03:00]}  d6 {[%clk 0:03:00]} 2. c4 {[%clk 0:02:57]}  e5 {[%clk 0:02:58]} 3. Nc3 {[%clk 0:02:57]}  exd4 {[%clk 0:02:58]} 4. Qxd4 {[%clk 0:02:57]}  Nf6 {[%clk 0:02:59]} 5. e4 {[%clk 0:02:54]}  Nc6 {[%clk 0:03:00]} 6. Qd2 {[%clk 0:02:54]}  Be6 {[%clk 0:02:59]} 7. b3 {[%clk 0:02:54]}  g6 {[%clk 0:02:56]} 8. Bb2 {[%clk 0:02:54]}  Bg7 {[%clk 0:02:57]} 9. Bd3 {[%clk 0:02:53]}  O-O {[%clk 0:02:57]} 10. Nge2 {[%clk 0:02:54]}  Nd7 {[%clk 0:02:58]} 11. O-O {[%clk 0:02:54]}  Nc5 {[%clk 0:02:58]} 12. Bc2 {[%clk 0:02:51]}  a5 {[%clk 0:02:58]} 13. a3 {[%clk 0:02:38]}  Qh4 {[%clk 0:02:56]} 14. Ng3 {[%clk 0:02:26]}  Nd4 {[%clk 0:02:50]} 15. Qd1 {[%clk 0:02:00]}  c6 {[%clk 0:02:09]} 16. Rb1 {[%clk 0:01:50]}  a4 {[%clk 0:02:01]} 17. b4 {[%clk 0:01:47]}  Ncb3 {[%clk 0:01:58]} 18. Bd3 {[%clk 0:01:44]}  d5 {[%clk 0:01:48]} 19. cxd5 {[%clk 0:01:36]}  cxd5 {[%clk 0:01:49]} 20. Nxd5 {[%clk 0:01:32]}  Bxd5 {[%clk 0:01:42]} 21. exd5 {[%clk 0:01:32]}  Rfd8 {[%clk 0:01:42]} 22. Bc4 {[%clk 0:01:13]}  Rac8 {[%clk 0:01:42]} 23. Bxb3 {[%clk 0:01:07]}  Nxb3 {[%clk 0:01:42]} 24. Bxg7 {[%clk 0:01:07]}  Kxg7 {[%clk 0:01:43]} 25. Qd3 {[%clk 0:00:53]}  Qc4 {[%clk 0:01:28]} 26. Rfd1 {[%clk 0:00:49]}  Qxd3 {[%clk 0:01:17]} 27. Rxd3 {[%clk 0:00:49]}  f5 {[%clk 0:01:18]} 28. h3 {[%clk 0:00:41]}  Rc2 {[%clk 0:01:18]} 29. Re1 {[%clk 0:00:35]}  Kf7 {[%clk 0:01:18]} 30. d6 {[%clk 0:00:30]}  Rd7 {[%clk 0:01:15]} 31. Rde3 {[%clk 0:00:08]}  Rxd6 {[%clk 0:00:40]} 32. Re7+ {[%clk 0:00:08]}  Kf6 {[%clk 0:00:41]} 33. Rxb7 {[%clk 0:00:08]}  Rdd2 {[%clk 0:00:40]} 34. Ree7 {[%clk 0:00:04]}  Rxf2 {[%clk 0:00:38]} 35. Ne4+ {[%clk 0:00:02]}  fxe4 {[%clk 0:00:33]} 36. Rf7+ {[%clk 0:00:03]}  Ke5 {[%clk 0:00:33]} 37. Rxf2 {[%clk 0:00:04]}  Rc1+ {[%clk 0:00:33]} 38. Kh2 {[%clk 0:00:05]}  e3 {[%clk 0:00:33]} 39. Re2 {[%clk 0:00:05]}  Rc3 {[%clk 0:00:30]} 40. Re7+ {[%clk 0:00:05]}  Kd4 {[%clk 0:00:31]} 41. Rd7+ {[%clk 0:00:05]}  Ke4 {[%clk 0:00:30]} 42. Rd6 {[%clk 0:00:05]}  Nd4 {[%clk 0:00:30]} 43. Rxd4+ {[%clk 0:00:04]}  Kxd4 {[%clk 0:00:30]} 44. b5 {[%clk 0:00:05]}  Rxa3 {[%clk 0:00:30]} 45. Rb2 {[%clk 0:00:05]}  Rb3 {[%clk 0:00:29]} 46. Rxb3 {[%clk 0:00:04]}  axb3 {[%clk 0:00:29]} 47. b6 {[%clk 0:00:05]}  b2 {[%clk 0:00:30]} 48. b7 {[%clk 0:00:03]}  b1=Q {[%clk 0:00:30]} 0-1

[Event "December 5 Early 2023"]
[Site "https://www.chess.com"]
[Date "2023.12.05"]
[Round "3"]
[White "Chirivi C, Jenny Astrid"]
[Black "Estrada Nieto, Julian"]
[Result "0-1"]
[Board "179"]
[TimeControl "180+1"]
[WhiteFideId "4403061"]
[BlackFideId "5101018"]
[WhiteElo "2320"]
[BlackElo "2498"]
[WhiteTeam "COL"]
[BlackTeam "ESP"]
[WhiteClock "0:00:08"]
[BlackClock "0:01:04"]

1. d4 {[%clk 0:03:00]}  d5 {[%clk 0:02:57]} 2. c4 {[%clk 0:03:00]}  dxc4 {[%clk 0:02:56]} 3. Nf3 {[%clk 0:02:59]}  Nf6 {[%clk 0:02:56]} 4. e3 {[%clk 0:02:59]}  e6 {[%clk 0:02:57]} 5. Bxc4 {[%clk 0:02:59]}  a6 {[%clk 0:02:57]} 6. Bb3 {[%clk 0:02:54]}  c5 {[%clk 0:02:54]} 7. O-O {[%clk 0:02:50]}  cxd4 {[%clk 0:02:54]} 8. Nxd4 {[%clk 0:02:44]}  Bd7 {[%clk 0:02:50]} 9. Qf3 {[%clk 0:02:32]}  Nc6 {[%clk 0:02:49]} 10. Rd1 {[%clk 0:02:29]}  Qc7 {[%clk 0:02:47]} 11. Nc3 {[%clk 0:02:23]}  Nxd4 {[%clk 0:02:37]} 12. Rxd4 {[%clk 0:02:21]}  Bc5 {[%clk 0:02:37]} 13. Rd1 {[%clk 0:02:08]}  O-O {[%clk 0:02:37]} 14. e4 {[%clk 0:02:08]}  Bc6 {[%clk 0:02:28]} 15. Bf4 {[%clk 0:02:06]}  Qb6 {[%clk 0:02:09]} 16. Bg5 {[%clk 0:01:36]}  Bd4 {[%clk 0:02:06]} 17. Bxf6 {[%clk 0:01:32]}  Bxf6 {[%clk 0:02:05]} 18. Rd3 {[%clk 0:01:27]}  Rfd8 {[%clk 0:02:04]} 19. Rad1 {[%clk 0:01:27]}  Rxd3 {[%clk 0:02:04]} 20. Rxd3 {[%clk 0:01:27]}  Rd8 {[%clk 0:02:03]} 21. h3 {[%clk 0:01:26]}  Rxd3 {[%clk 0:02:01]} 22. Qxd3 {[%clk 0:01:26]}  Qd4 {[%clk 0:02:01]} 23. Qxd4 {[%clk 0:01:22]}  Bxd4 {[%clk 0:02:01]} 24. Bc2 {[%clk 0:01:21]}  b5 {[%clk 0:02:00]} 25. Kf1 {[%clk 0:01:20]}  Kf8 {[%clk 0:01:55]} 26. Ke2 {[%clk 0:01:19]}  Ke7 {[%clk 0:01:54]} 27. f3 {[%clk 0:01:18]}  g5 {[%clk 0:01:53]} 28. Kd3 {[%clk 0:01:16]}  Be5 {[%clk 0:01:52]} 29. b3 {[%clk 0:01:12]}  Kd6 {[%clk 0:01:51]} 30. Ne2 {[%clk 0:01:08]}  Kc5 {[%clk 0:01:49]} 31. a3 {[%clk 0:01:03]}  a5 {[%clk 0:01:49]} 32. Nc3 {[%clk 0:00:24]}  h5 {[%clk 0:01:32]} 33. Bd1 {[%clk 0:00:20]}  Bf4 {[%clk 0:01:27]} 34. Ne2 {[%clk 0:00:18]}  Be5 {[%clk 0:01:24]} 35. Kc2 {[%clk 0:00:15]}  h4 {[%clk 0:01:18]} 36. Nc1 {[%clk 0:00:14]}  Kd4 {[%clk 0:01:13]} 37. Kd2 {[%clk 0:00:14]}  Bf4+ {[%clk 0:01:13]} 38. Kc2 {[%clk 0:00:14]}  Bxc1 {[%clk 0:01:12]} 39. Kxc1 {[%clk 0:00:14]}  Ke3 {[%clk 0:01:12]} 40. Kc2 {[%clk 0:00:13]}  Kf2 {[%clk 0:01:12]} 41. Kc3 {[%clk 0:00:11]}  Kxg2 {[%clk 0:01:10]} 42. Kd4 {[%clk 0:00:12]}  Kxh3 {[%clk 0:01:09]} 43. Kc5 {[%clk 0:00:12]}  Be8 {[%clk 0:01:08]} 44. e5 {[%clk 0:00:12]}  Kg3 {[%clk 0:01:07]} 45. Be2 {[%clk 0:00:11]}  h3 {[%clk 0:01:05]} 46. Kd6 {[%clk 0:00:11]}  h2 {[%clk 0:01:05]} 47. Ke7 {[%clk 0:00:11]}  Bc6 {[%clk 0:01:04]} 48. Kxf7 {[%clk 0:00:08]}  Bd5 {[%clk 0:01:04]} 0-1

[Event "December 5 Early 2023"]
[Site "https://www.chess.com"]
[Date "2023.12.05"]
[Round "3"]
[White "Cardozo Munar, Carlos Eduardo"]
[Black "Bold, Andre"]
[Result "1-0"]
[Board "180"]
[TimeControl "180+1"]
[WhiteFideId "4409477"]
[BlackFideId "16208471"]
[WhiteElo "2275"]
[BlackElo "2495"]
[WhiteTeam "COL"]
[BlackTeam "GER"]
[WhiteClock "0:01:36"]
[BlackClock "0:00:13"]

1. d4 {[%clk 0:03:00]}  d5 {[%clk 0:02:59]} 2. c3 {[%clk 0:03:01]}  Nf6 {[%clk 0:02:59]} 3. Bg5 {[%clk 0:03:01]}  Nbd7 {[%clk 0:02:57]} 4. Nd2 {[%clk 0:03:01]}  g6 {[%clk 0:02:56]} 5. e3 {[%clk 0:03:01]}  Bg7 {[%clk 0:02:56]} 6. Bd3 {[%clk 0:03:02]}  O-O {[%clk 0:02:57]} 7. f4 {[%clk 0:03:02]}  c6 {[%clk 0:02:56]} 8. Ngf3 {[%clk 0:03:02]}  Qb6 {[%clk 0:02:56]} 9. Rb1 {[%clk 0:02:59]}  h6 {[%clk 0:02:53]} 10. Bh4 {[%clk 0:02:59]}  a5 {[%clk 0:02:51]} 11. O-O {[%clk 0:02:59]}  a4 {[%clk 0:02:51]} 12. Ne5 {[%clk 0:02:59]}  Re8 {[%clk 0:02:45]} 13. Qc2 {[%clk 0:02:46]}  Nf8 {[%clk 0:02:23]} 14. a3 {[%clk 0:02:28]}  Qc7 {[%clk 0:02:23]} 15. Rbe1 {[%clk 0:02:27]}  b5 {[%clk 0:02:05]} 16. e4 {[%clk 0:02:26]}  dxe4 {[%clk 0:02:04]} 17. Nxe4 {[%clk 0:02:27]}  Nxe4 {[%clk 0:02:04]} 18. Bxe4 {[%clk 0:02:27]}  Bb7 {[%clk 0:02:00]} 19. Rf3 {[%clk 0:02:20]}  c5 {[%clk 0:01:53]} 20. d5 {[%clk 0:02:12]}  Rad8 {[%clk 0:01:46]} 21. Nc6 {[%clk 0:02:04]}  Bxc6 {[%clk 0:01:27]} 22. dxc6 {[%clk 0:02:05]}  Rd6 {[%clk 0:01:27]} 23. Rfe3 {[%clk 0:02:01]}  b4 {[%clk 0:01:16]} 24. Kh1 {[%clk 0:01:58]}  bxa3 {[%clk 0:01:12]} 25. bxa3 {[%clk 0:01:58]}  e5 {[%clk 0:01:01]} 26. f5 {[%clk 0:01:53]}  g5 {[%clk 0:00:57]} 27. Bg3 {[%clk 0:01:53]}  f6 {[%clk 0:00:55]} 28. Qxa4 {[%clk 0:01:53]}  Red8 {[%clk 0:00:50]} 29. c4 {[%clk 0:01:53]}  h5 {[%clk 0:00:48]} 30. Bd5+ {[%clk 0:01:53]}  Kh8 {[%clk 0:00:47]} 31. Rb3 {[%clk 0:01:43]}  Rb8 {[%clk 0:00:34]} 32. Reb1 {[%clk 0:01:43]}  Rdd8 {[%clk 0:00:25]} 33. Bf2 {[%clk 0:01:42]}  Rxb3 {[%clk 0:00:23]} 34. Rxb3 {[%clk 0:01:41]}  Rb8 {[%clk 0:00:22]} 35. Rb7 {[%clk 0:01:41]}  Rxb7 {[%clk 0:00:21]} 36. cxb7 {[%clk 0:01:42]}  Qb6 {[%clk 0:00:22]} 37. Qb5 {[%clk 0:01:35]}  Qxb5 {[%clk 0:00:19]} 38. cxb5 {[%clk 0:01:36]}  Nd7 {[%clk 0:00:19]} 39. Bxc5 {[%clk 0:01:36]}  Kh7 {[%clk 0:00:13]} 40. Bd6 {[%clk 0:01:36]} 1-0